fUSD/lending_fUSD_20260202
["ID","MTS","AMOUNT","RATE_DAILY","PERIOD"]
[404293768,1770040248343,-38230.0690539,0.0001783,2]
[404293769,1770040248352,-25000.0,0.00017838,3]
[404293770,1770040248362,-386.0,0.00017847,2]
[404293771,1770040248371,-25000.0,0.00017847,3]
[404293772,1770040248380,-234.72260264,0.00017848,2]
[404293773,1770040248388,-200.0,0.00017855,2]
[404293774,1770040248397,-200.0,0.00017856,2]
[404293775,1770040248406,-25000.0,0.00017856,3]
[404293776,1770040248415,-200.0,0.00017856,2]
[404293777,1770040248424,-200.0,0.00017856,2]
[404293778,1770040248433,-500.0,0.00017863,2]
[404293779,1770040248442,-25000.0,0.00017865,3]
[404293780,1770040248451,-25000.0,0.00017874,3]
[404293781,1770040248461,-839.0,0.00017875,2]
[404293782,1770040248470,-25000.0,0.00017882,3]
[404293783,1770040248480,-151.0,0.00017888,2]
[404293784,1770040248489,-25000.0,0.00017891,3]
[404293785,1770040248498,-17205.90121961,0.000179,3]
[404293786,1770040248507,-899.3563707,0.000179,2]
[404293787,1770040248516,-25000.0,0.000179,3]
[404293788,1770040248525,-557.49497385,0.000179,2]
[404293789,1770040248534,-10385.81745076,0.000179,2]
[404293790,1770040248543,-11023.58451021,0.000179,2]
[404293791,1770040248552,-8418.81461079,0.000179,2]
[404293792,1770040248561,-13610.0,0.000179,2]
[404293793,1770040248571,-386.0,0.00017911,2]
[404293794,1770040248579,-500.0,0.00017918,2]
[404293795,1770040248589,-5888.0,0.00017918,2]
[404293796,1770040248597,-339.0,0.00017927,2]
[404293797,1770040248606,-200.009499,0.00017927,2]
[404293798,1770040248616,-386.0,0.00017952,2]
[404293799,1770040248625,-334.5472959,0.00017966,2]
[404293800,1770040248634,-1667.4,0.00017966,2]
[404293801,1770040248643,-505.94629065,0.0001797,2]
[404293802,1770040248652,-506.1208044,0.00017972,2]
[404293803,1770040248661,-386.0,0.00017979,2]
[404293804,1770040248670,-500.0,0.00017982,2]
[404293805,1770040248679,-151.0,0.00017986,2]
[404293806,1770040248688,-151.0,0.00017986,2]
[404293807,1770040248698,-154.05333475,0.00017986,2]
[404293808,1770040248707,-386.0,0.0001799,2]
[404293809,1770040248715,-189.72796188,0.0001799,2]
[404293810,1770040248725,-5800.0,0.00017992,2]
[404293811,1770040248733,-163.0080897,0.00017992,2]
[404293812,1770040248742,-3234.371391,0.00017993,2]
[404293813,1770040248751,-400602.8086803,0.00017993,2]
[404293814,1770040248759,-3118.8277166,0.00017993,2]
[404293815,1770040248768,-5186.9993906,0.00017993,2]
[404293816,1770040248778,-18092.7440069,0.00017993,2]
[404293817,1770040248787,-2934.4981726,0.00017993,2]
[404293818,1770040248795,-161.21910117,0.00017997,2]
[404293819,1770040248804,-153.40029052,0.00017999,2]
[404293820,1770040248813,-386.0,0.00017999,2]
[404293821,1770040248822,-300.0,0.00017999,2]
[404293822,1770040248831,-300.0,0.00017999,2]
[404293823,1770040248839,-300.0,0.00017999,2]
[404293824,1770040248849,-300.0,0.00017999,2]
[404293825,1770040248858,-898827.50952131,0.00018,2]
[404293826,1770040248868,-1000.0,0.00018,2]
[404293827,1770040248877,-1000.0,0.00018,2]
[404293828,1770040248885,-1000.0,0.00018,2]
[404293829,1770040248894,-1000.0,0.00018,2]
[404293830,1770040248904,-1000.0,0.00018,2]
[404293831,1770040248915,-1000.0,0.00018,2]
[404293832,1770040248924,-1000.0,0.00018,2]
[404293833,1770040248935,-1000.0,0.00018,2]
[404293834,1770040248947,-1000.0,0.00018,2]
[404293835,1770040248958,-1000.0,0.00018,2]
[404293836,1770040248967,-1000.0,0.00018,2]
[404293837,1770040248976,-1000.0,0.00018,2]
[404293838,1770040248986,-1000.0,0.00018,2]
[404293839,1770040248995,-1000.0,0.00018,2]
[404293840,1770040249004,-1000.0,0.00018,2]
[404293841,1770040249014,-1000.0,0.00018,2]
[404293842,1770040249023,-1000.0,0.00018,2]
[404293843,1770040249031,-1000.0,0.00018,2]
[404293844,1770040249041,-1000.0,0.00018,2]
[404293845,1770040249051,-1000.0,0.00018,2]
[404293846,1770040249061,-1000.0,0.00018,2]
[404293847,1770040249070,-1000.0,0.00018,2]
[404293848,1770040249079,-150.0,0.00018,2]
[404293849,1770040249090,-1000.0,0.00018,2]
[404293850,1770040249099,-1141.04007611,0.00018,2]
[404293851,1770040249107,-2348.91140711,0.00018,2]
[404293852,1770040249116,-150.0,0.00018,2]
[404293853,1770040249125,-456.03157398,0.00018,2]
[404293854,1770040249134,-173.79954991,0.00018,2]
[404293855,1770040249143,-308.0160656,0.00018,2]
[404293856,1770040249152,-5800.0,0.00018,2]
[404293857,1770040249161,-1367639.59370088,0.00018,2]
[404293858,1770040249417,-30864.37590098,0.00018,2]
[404293859,1770040249773,-531.774,0.00018,2]
[404293860,1770040249837,-151.0,0.00014865,2]
[404293861,1770040249846,-3600.72624591,0.00018,2]
[404293862,1770040249858,-206455.08392827,0.00018,2]
[404293863,1770040249943,-151.0,0.00014865,2]
[404293864,1770040249953,-1595.77022699,0.00018,2]
[404293865,1770040249965,-300007.3135215,0.00018,2]
[404293869,1770040949801,-332.57,0.00012522,2]
[404293870,1770040980131,-150.0,0.0001273,2]
[404293871,1770040980168,-1224.0,0.0001273,2]
[404293872,1770040980200,-150.0,0.0001273,2]
[404293873,1770040980232,-150.0,0.0001273,2]
[404293874,1770040980263,-150.0,0.0001273,2]
[404293875,1770040980292,-150.0,0.0001273,2]
[404293876,1770040980321,-500.0,0.0001273,2]
[404293877,1770040980500,-500.0,0.0001273,2]
[404293878,1770040980535,-150.0,0.0001273,2]
[404293879,1770040982521,300.0,0.00012729,2]
[404293880,1770040995057,-899.34847157,0.0001274,2]
[404293881,1770040995341,-2901.31305686,0.0001274,2]
[404293882,1770040995385,-1044.30425286,0.0001274,2]
[404293883,1770040995424,-2911.40149428,0.0001274,2]
[404293884,1770040997953,-5000.01,0.0001274,2]
[404293885,1770041001035,-1581.20538921,0.0001274,2]
[404293886,1770041001062,-1837.59922158,0.0001274,2]
[404293887,1770041004176,-5000.01,0.0001274,2]
[404293888,1770041005224,-5000.01,0.0001274,2]
[404293889,1770041005371,-5000.01,0.0001274,2]
[404293890,1770041005488,-5000.01,0.0001274,2]
[404293891,1770041007067,-5000.01,0.0001274,2]
[404293892,1770041055549,-1739.57,0.00012076,2]
[404293893,1770041055572,-1520.87,0.00012076,2]
[404293894,1770041058420,-366.93472164,0.0001274,2]
[404293895,1770041058447,-781.37908536,0.0001274,2]
[404293896,1770041058474,-300.0,0.00012784,2]
[404293897,1770041059392,239.86447206,0.0001274,2]
[404293898,1770041060409,150.0,0.00012073,2]
[404293899,1770041068270,1713.51791394,0.00012395,2]
[404293904,1770041350401,-1465.6,0.00011841,2]
[404293962,1770041366929,-300.0,0.00011856,2]
[404293964,1770041378440,1000.0,0.00011517,2]
[404293976,1770041431251,-600.0,0.00011872,2]
[404293982,1770041431311,-865.6,0.00011872,2]
[404293983,1770041431324,-250.0,0.00011887,2]
[404293984,1770041431334,-1086.80451479,0.00011903,2]
[404293985,1770041431371,-378.79548521,0.00011903,2]
[404293986,1770041431380,-1465.6,0.00011934,2]
[404293987,1770041431390,-1129.17134735,0.00011952,2]
[404294000,1770041437381,-723.24865265,0.00011952,2]
[404294001,1770041437390,-1465.6,0.00011965,2]
[404294002,1770041437400,-1178.21982947,0.0001198,2]
[404294003,1770041437495,-21.78017053,0.0001198,2]
[404294004,1770041437505,-311.8057918,0.00011981,2]
[404294005,1770041437515,-665.41403767,0.00011996,2]
[404294006,1770041437527,-800.18596233,0.00011996,2]
[404294007,1770041437538,-333.17916864,0.00012011,2]
[404294008,1770041437608,-1266.82083136,0.00012011,2]
[404294009,1770041437619,-1465.6,0.00012028,2]
[404294010,1770041437628,-1465.6,0.00012059,2]
[404294011,1770041437638,-346.75833275,0.0001209,2]
[404294012,1770041437650,-1118.84166725,0.0001209,2]
[404294013,1770041437659,-1465.6,0.00012121,2]
[404294014,1770041437670,-1465.6,0.00012152,2]
[404294015,1770041437679,-1465.6,0.00012183,2]
[404294016,1770041437690,-150.0,0.00012191,2]
[404294017,1770041437700,-500.0,0.00012202,2]
[404294018,1770041437711,-1465.6,0.00012214,2]
[404294019,1770041437720,-1465.6,0.00012246,2]
[404294021,1770041437729,-1465.6,0.00012277,2]
[404294023,1770041437739,-1465.6,0.00012308,2]
[404294025,1770041437748,-1016.61699427,0.00012339,2]
[404294044,1770041439714,-448.98300573,0.00012339,2]
[404294045,1770041439724,-1465.6,0.0001237,2]
[404294046,1770041439734,-8009.87208606,0.00012395,2]
[404294047,1770041439744,-1465.6,0.00012401,2]
[404294048,1770041439753,-1465.6,0.00012432,2]
[404294049,1770041439762,-224.32,0.000126,2]
[404294050,1770041439771,-2666.0,0.00012639,2]
[404294051,1770041439780,-154.11430393,0.00012639,2]
[404294052,1770041439790,-150.0,0.00012639,2]
[404294053,1770041439800,-150.0,0.00012639,2]
[404294054,1770041439809,-150.0,0.00012639,2]
[404294055,1770041439819,-150.0,0.00012639,2]
[404294056,1770041439829,-2666.0,0.00012694,2]
[404294057,1770041439840,-150.0,0.00012694,2]
[404294058,1770041439850,-150.0,0.00012694,2]
[404294059,1770041439859,-250.0,0.00012694,2]
[404294060,1770041439868,-150.0,0.00012694,2]
[404294061,1770041439879,-801.0,0.00012723,2]
[404294062,1770041439888,-708.1266375,0.0001274,2]
[404294063,1770041439897,-786.92991265,0.0001274,2]
[404294064,1770041439907,-480.55721144,0.0001274,2]
[404294065,1770041439917,-590.1974345,0.0001274,2]
[404294066,1770041439926,-26483.7765009,0.0001274,2]
[404294067,1770041439935,-5612.54307386,0.0001274,2]
[404294068,1770041439945,-500.0,0.00012748,2]
[404294070,1770041439954,-2666.0,0.00012749,2]
[404294071,1770041439963,-150.0,0.00012749,2]
[404294072,1770041439972,-150.0,0.00012749,2]
[404294073,1770041439981,-150.0,0.00012749,2]
[404294074,1770041439991,-549.54,0.00012757,2]
[404294075,1770041440000,-154.0080328,0.00012784,2]
[404294076,1770041440009,-500.0,0.00012785,2]
[404294077,1770041440023,-150.0,0.00012785,2]
[404294078,1770041440033,-150.0,0.00012802,2]
[404294079,1770041440042,-2666.0,0.00012803,2]
[404294080,1770041440056,-200.0,0.00012803,2]
[404294081,1770041440065,-150.0,0.00012803,2]
[404294082,1770041440075,-150.0,0.00012803,2]
[404294083,1770041440084,-829.81196401,0.00012804,2]
[404294084,1770041440093,-829.81196401,0.00012804,2]
[404294085,1770041440102,-200.0,0.00012806,2]
[404294086,1770041440111,-151.0,0.00012806,2]
[404294087,1770041440120,-151.0,0.00012806,2]
[404294088,1770041440130,-151.0,0.00012806,2]
[404294089,1770041440139,-151.0,0.00012806,2]
[404294090,1770041440148,-151.0,0.00012806,2]
[404294091,1770041440158,-151.0,0.00012806,2]
[404294092,1770041440167,-500.0,0.00012806,2]
[404294093,1770041440176,-151.0,0.00012806,2]
[404294094,1770041440187,-500.0,0.00012806,2]
[404294095,1770041440196,-151.0,0.00012806,2]
[404294096,1770041440205,-500.0,0.00012806,2]
[404294097,1770041440215,-151.0,0.00012806,2]
[404294098,1770041440224,-500.0,0.00012806,2]
[404294099,1770041440233,-151.0,0.00012806,2]
[404294100,1770041440244,-500.0,0.00012806,2]
[404294101,1770041440255,-151.0,0.00012806,2]
[404294102,1770041440265,-500.0,0.00012806,2]
[404294103,1770041440274,-500.0,0.00012806,2]
[404294104,1770041440285,-500.0,0.00012806,2]
[404294105,1770041440294,-500.0,0.00012806,2]
[404294106,1770041440304,-500.0,0.00012806,2]
[404294107,1770041440317,-500.0,0.00012806,2]
[404294108,1770041440329,-500.0,0.00012806,2]
[404294109,1770041440338,-500.0,0.00012806,2]
[404294110,1770041440347,-500.0,0.00012806,2]
[404294111,1770041440357,-500.0,0.00012806,2]
[404294112,1770041440368,-500.0,0.00012806,2]
[404294113,1770041440381,-500.0,0.00012806,2]
[404294114,1770041440391,-500.0,0.00012806,2]
[404294115,1770041440401,-500.0,0.00012806,2]
[404294116,1770041440410,-500.0,0.00012806,2]
[404294117,1770041440419,-500.0,0.00012806,2]
[404294118,1770041440428,-500.0,0.00012806,2]
[404294119,1770041440437,-500.0,0.00012806,2]
[404294120,1770041440447,-151.0,0.00012811,2]
[404294121,1770041440457,-151.0,0.00012811,2]
[404294122,1770041440468,-256.89504947,0.00012813,2]
[404294123,1770041440477,-282.93304458,0.00012813,2]
[404294124,1770041440489,-500.0,0.00012813,2]
[404294125,1770041440499,-184.57646914,0.00012813,2]
[404294126,1770041440510,-648.8640082,0.00012813,2]
[404294127,1770041440519,-500.0,0.00012813,2]
[404294128,1770041440529,-539.6926638,0.00012813,2]
[404294129,1770041440538,-500.0,0.00012813,2]
[404294130,1770041440548,-500.0,0.00012813,2]
[404294131,1770041440560,-350.0,0.00012813,2]
[404294132,1770041440574,-500.0,0.00012813,2]
[404294133,1770041440584,-500.0,0.00012813,2]
[404294134,1770041440593,-350.0,0.00012813,2]
[404294135,1770041440603,-3500000.0,0.00012814,2]
[404294136,1770041440612,-500.0,0.0001284,2]
[404294137,1770041440623,-150.0,0.0001284,2]
[404294138,1770041440632,-2666.0,0.00012858,2]
[404294139,1770041440642,-250.0,0.00012858,2]
[404294140,1770041440651,-250.0,0.00012858,2]
[404294141,1770041440660,-151.0,0.00012892,2]
[404294142,1770041440670,-500.0,0.00012894,2]
[404294143,1770041440680,-150.0,0.00012894,2]
[404294144,1770041440691,-19211.6,0.00012894,2]
[404294145,1770041440702,-9999.99,0.00012894,2]
[404294146,1770041440712,-9999.99,0.00012894,2]
[404294147,1770041440722,-9999.99,0.00012894,2]
[404294148,1770041440731,-150.99,0.00012894,2]
[404294149,1770041440741,-9999.99,0.00012894,2]
[404294150,1770041440751,-2666.0,0.00012913,2]
[404294151,1770041440761,-500.0,0.00012913,2]
[404294152,1770041440770,-500.0,0.00012913,2]
[404294153,1770041440780,-500.0,0.00012913,2]
[404294154,1770041440793,-424.05409098,0.00012913,2]
[404294155,1770041440813,-180.576,0.00012913,2]
[404294156,1770041440832,-2895.724,0.00012913,2]
[404294157,1770041440842,-2307.14267206,0.00012914,2]
[404294158,1770041440853,-158.43558998,0.00012949,2]
[404294159,1770041440864,-150.0,0.00012949,2]
[404294160,1770041440875,-1000.0,0.00012956,2]
[404294161,1770041440886,-2666.0,0.00012968,2]
[404294162,1770041440899,-532.0,0.00012986,2]
[404294163,1770041440912,-422.0,0.00012986,2]
[404294164,1770041440924,-207.33206215,0.00013004,2]
[404294165,1770041440936,-33275.4141,0.00013014,2]
[404294166,1770041440947,-1000.0,0.00013014,2]
[404294167,1770041440960,-421.6032,0.00013014,2]
[404294168,1770041440970,-500.0,0.00013022,2]
[404294169,1770041440986,-2666.0,0.00013023,2]
[404294170,1770041440997,-300.0,0.00013025,2]
[404294171,1770041441007,-250.0,0.00013025,2]
[404294172,1770041441019,-300.0,0.00013059,2]
[404294173,1770041441029,-250.0,0.00013059,2]
[404294174,1770041441040,-2666.0,0.00013077,2]
[404294175,1770041441050,-2666.0,0.00013132,2]
[404294176,1770041441061,-300.0,0.00013147,2]
[404294177,1770041441071,-1680.0,0.00013178,2]
[404294178,1770041441082,-2666.0,0.00013187,2]
[404294179,1770041441093,-500.0,0.00013212,2]
[404294180,1770041441104,-332.57,0.00013218,2]
[404294181,1770041441113,-2666.0,0.00013242,2]
[404294182,1770041441126,-26483.7765009,0.00013288,2]
[404294183,1770041441136,-2666.0,0.00013297,2]
[404294184,1770041441146,-2666.0,0.00013351,2]
[404294185,1770041441157,-200.0,0.00013354,2]
[404294186,1770041441169,-500.0,0.00013354,2]
[404294187,1770041441182,-2666.0,0.00013406,2]
[404294188,1770041441192,-500.0,0.00013424,2]
[404294189,1770041441202,-150.4373073,0.00013424,2]
[404294190,1770041441213,-150.0,0.00013424,2]
[404294191,1770041441223,-500.0,0.00013424,2]
[404294192,1770041441236,-500.0,0.00013424,2]
[404294193,1770041441248,-500.0,0.00013424,2]
[404294194,1770041441258,-500.0,0.00013424,2]
[404294195,1770041441270,-500.0,0.00013424,2]
[404294196,1770041441281,-150.0,0.00013424,2]
[404294197,1770041441291,-500.0,0.00013424,2]
[404294198,1770041441304,-150.0,0.00013424,2]
[404294199,1770041441316,-150.0,0.00013424,2]
[404294200,1770041441336,-150.0,0.00013424,2]
[404294201,1770041441348,-250.0,0.00013424,2]
[404294202,1770041441360,-500.0,0.00013424,2]
[404294203,1770041441370,-200.0,0.00013424,2]
[404294204,1770041441383,-150.54146631,0.00013424,2]
[404294205,1770041441393,-2666.0,0.00013461,2]
[404294206,1770041441404,-786.92991262,0.00013477,2]
[404294207,1770041441415,-590.19743446,0.00013477,2]
[404294208,1770041441424,-500.0,0.00013479,2]
[404294209,1770041441433,-150.0,0.00013479,2]
[404294210,1770041441444,-500.0,0.00013479,2]
[404294211,1770041441455,-500.0,0.00013479,2]
[404294212,1770041441466,-500.0,0.00013479,2]
[404294213,1770041441477,-500.0,0.00013479,2]
[404294214,1770041441491,-500.0,0.00013479,2]
[404294215,1770041441512,-150.0,0.00013479,2]
[404294216,1770041441530,-500.0,0.00013479,2]
[404294217,1770041441542,-150.0,0.00013479,2]
[404294218,1770041441551,-150.0,0.00013479,2]
[404294219,1770041441561,-150.0,0.00013479,2]
[404294220,1770041441570,-500.0,0.00013479,2]
[404294221,1770041441579,-1600.0,0.00013512,2]
[404294222,1770041441589,-2666.0,0.00013516,2]
[404294223,1770041441598,-500.0,0.00013534,2]
[404294224,1770041441608,-150.0,0.00013534,2]
[404294225,1770041441620,-500.0,0.00013534,2]
[404294226,1770041441631,-150.0,0.00013534,2]
[404294227,1770041441641,-500.0,0.00013534,2]
[404294228,1770041441652,-569.21162373,0.00013534,2]
[404294229,1770041441663,-500.0,0.00013534,2]
[404294230,1770041441673,-150.0,0.00013534,2]
[404294231,1770041441683,-548.08731584,0.00013534,2]
[404294232,1770041441694,-150.0,0.00013534,2]
[404294233,1770041441705,-215.60722138,0.00013534,2]
[404294234,1770041441715,-155.36591009,0.00013534,2]
[404294235,1770041441724,-500.0,0.00013534,2]
[404294236,1770041441733,-2666.0,0.00013571,2]
[404294237,1770041441743,-500.0,0.00013588,2]
[404294238,1770041441753,-179.32668848,0.00013588,2]
[404294239,1770041441763,-500.0,0.00013588,2]
[404294240,1770041441774,-500.0,0.00013588,2]
[404294241,1770041441785,-169.35603716,0.00013588,2]
[404294242,1770041441796,-235.58915604,0.00013588,2]
[404294243,1770041441807,-2666.0,0.00013625,2]
[404294244,1770041441818,-910.54547353,0.00013636,2]
[404294245,1770041441828,-500.0,0.00013643,2]
[404294246,1770041441839,-500.0,0.00013643,2]
[404294247,1770041441848,-500.0,0.00013643,2]
[404294248,1770041441858,-2666.0,0.0001368,2]
[404294249,1770041441867,-412.15,0.00013694,2]
[404294250,1770041441878,-500.0,0.00013698,2]
[404294251,1770041441888,-500.0,0.00013698,2]
[404294252,1770041441898,-359.16308256,0.00013698,2]
[404294253,1770041441908,-502.21542978,0.00013698,2]
[404294254,1770041441918,-500.0,0.00013698,2]
[404294255,1770041441927,-500.0,0.00013698,2]
[404294256,1770041441936,-310.72048062,0.00013698,2]
[404294257,1770041441945,-500.0,0.00013698,2]
[404294258,1770041441955,-500.0,0.00013698,2]
[404294259,1770041441965,-500.0,0.00013698,2]
[404294260,1770041441974,-504.83472388,0.00013698,2]
[404294261,1770041441984,-500.0,0.00013698,2]
[404294262,1770041441994,-500.0,0.00013698,2]
[404294263,1770041442003,-500.0,0.00013698,2]
[404294264,1770041442012,-500.0,0.00013698,2]
[404294265,1770041442022,-500.0,0.00013698,2]
[404294266,1770041442031,-500.0,0.00013698,2]
[404294267,1770041442040,-500.89475649,0.00013698,2]
[404294268,1770041442050,-500.0,0.00013698,2]
[404294269,1770041442059,-500.0,0.00013698,2]
[404294270,1770041442069,-500.0,0.00013698,2]
[404294271,1770041442079,-500.0,0.00013698,2]
[404294272,1770041442088,-500.0,0.00013698,2]
[404294273,1770041442098,-500.0,0.00013698,2]
[404294274,1770041442107,-500.0,0.00013698,2]
[404294275,1770041442116,-500.0,0.00013698,2]
[404294276,1770041442126,-500.0,0.00013698,2]
[404294277,1770041442136,-326.5559361,0.00013698,2]
[404294279,1770041442145,-500.0,0.00013698,2]
[404294281,1770041442155,-500.0,0.00013698,2]
[404294282,1770041442165,-500.0,0.00013698,2]
[404294283,1770041442174,-500.0,0.00013698,2]
[404294284,1770041442183,-500.0,0.00013698,2]
[404294285,1770041442192,-500.0,0.00013698,2]
[404294286,1770041442202,-502.87563044,0.00013698,2]
[404294287,1770041442211,-500.0,0.00013698,2]
[404294288,1770041442220,-500.0,0.00013698,2]
[404294289,1770041442229,-512.33398537,0.00013698,2]
[404294290,1770041442239,-503.42637825,0.00013698,2]
[404294291,1770041442250,-500.0,0.00013698,2]
[404294292,1770041442261,-500.0,0.00013698,2]
[404294293,1770041442271,-500.0,0.00013698,2]
[404294294,1770041442503,-503.69401691,0.00013698,2]
[404294295,1770041442514,-500.0,0.00013698,2]
[404294296,1770041442524,-500.0,0.00013698,2]
[404294297,1770041442534,-500.0,0.00013698,2]
[404294298,1770041442543,-500.0,0.00013698,2]
[404294299,1770041442551,-500.0,0.00013698,2]
[404294300,1770041442560,-500.0,0.00013698,2]
[404294301,1770041442569,-449.79198328,0.00013698,2]
[404294302,1770041442578,-500.0,0.00013698,2]
[404294303,1770041442587,-500.0,0.00013698,2]
[404294304,1770041442596,-500.0,0.00013698,2]
[404294305,1770041442606,-500.0,0.00013698,2]
[404294306,1770041442615,-500.0,0.00013698,2]
[404294307,1770041442625,-500.0,0.00013698,2]
[404294308,1770041442634,-500.0,0.00013698,2]
[404294309,1770041442644,-500.0,0.00013698,2]
[404294310,1770041442653,-500.0,0.00013698,2]
[404294311,1770041442662,-500.0,0.00013698,2]
[404294312,1770041442672,-500.0,0.00013698,2]
[404294313,1770041442681,-500.0,0.00013698,2]
[404294314,1770041442690,-500.0,0.00013698,2]
[404294315,1770041442699,-500.0,0.00013698,2]
[404294316,1770041442709,-500.0,0.00013698,2]
[404294317,1770041442719,-500.0,0.00013698,2]
[404294318,1770041442728,-500.0,0.00013698,2]
[404294319,1770041442737,-500.0,0.00013698,2]
[404294320,1770041442747,-519.14978785,0.00013698,2]
[404294321,1770041442756,-500.0,0.00013698,2]
[404294322,1770041442765,-500.0,0.00013698,2]
[404294323,1770041442774,-500.0,0.00013698,2]
[404294324,1770041442784,-500.0,0.00013698,2]
[404294325,1770041442793,-500.0,0.00013698,2]
[404294326,1770041442802,-500.0,0.00013698,2]
[404294327,1770041442811,-500.0,0.00013698,2]
[404294328,1770041442821,-500.0,0.00013698,2]
[404294329,1770041442830,-587.5541255,0.00013698,2]
[404294330,1770041442839,-500.0,0.00013698,2]
[404294331,1770041442849,-523.26417397,0.00013698,2]
[404294332,1770041442858,-500.0,0.00013698,2]
[404294333,1770041442867,-500.0,0.00013698,2]
[404294334,1770041442877,-500.0,0.00013698,2]
[404294335,1770041442886,-500.0,0.00013698,2]
[404294336,1770041442896,-500.0,0.00013698,2]
[404294337,1770041442905,-500.0,0.00013698,2]
[404294338,1770041442914,-500.0,0.00013698,2]
[404294339,1770041442923,-496.93460441,0.00013698,2]
[404294340,1770041442932,-500.0,0.00013698,2]
[404294341,1770041442941,-500.0,0.00013698,2]
[404294342,1770041442950,-500.0,0.00013698,2]
[404294343,1770041442960,-500.0,0.00013698,2]
[404294344,1770041442969,-352.84918147,0.00013698,2]
[404294345,1770041442978,-500.0,0.00013698,2]
[404294346,1770041442987,-500.0,0.00013698,2]
[404294347,1770041442997,-500.0,0.00013698,2]
[404294349,1770041443006,-500.0,0.00013698,2]
[404294351,1770041443017,-500.0,0.00013698,2]
[404294353,1770041443026,-500.0,0.00013698,2]
[404294355,1770041443036,-500.0,0.00013698,2]
[404294357,1770041443047,-500.0,0.00013698,2]
[404294358,1770041443056,-500.0,0.00013698,2]
[404294359,1770041443066,-500.0,0.00013698,2]
[404294361,1770041443075,-500.0,0.00013698,2]
[404294363,1770041443084,-159.30915247,0.00013698,2]
[404294364,1770041443093,-500.0,0.00013698,2]
[404294366,1770041443102,-500.0,0.00013698,2]
[404294367,1770041443111,-500.0,0.00013698,2]
[404294368,1770041443120,-500.0,0.00013698,2]
[404294369,1770041443130,-500.0,0.00013698,2]
[404294370,1770041443139,-500.0,0.00013698,2]
[404294371,1770041443148,-500.0,0.00013698,2]
[404294372,1770041443157,-500.0,0.00013698,2]
[404294373,1770041443166,-500.0,0.00013698,2]
[404294374,1770041443175,-500.0,0.00013698,2]
[404294375,1770041443184,-500.0,0.00013698,2]
[404294376,1770041443193,-507.93374803,0.00013698,2]
[404294377,1770041443202,-500.0,0.00013698,2]
[404294378,1770041443211,-500.0,0.00013698,2]
[404294379,1770041443220,-500.0,0.00013698,2]
[404294380,1770041443229,-500.0,0.00013698,2]
[404294381,1770041443238,-500.0,0.00013698,2]
[404294382,1770041443248,-500.0,0.00013698,2]
[404294383,1770041443257,-500.0,0.00013698,2]
[404294384,1770041443266,-500.0,0.00013698,2]
[404294385,1770041443275,-500.0,0.00013698,2]
[404294386,1770041443283,-500.0,0.00013698,2]
[404294387,1770041443292,-500.0,0.00013698,2]
[404294388,1770041443301,-500.0,0.00013698,2]
[404294389,1770041443310,-500.0,0.00013698,2]
[404294390,1770041443321,-500.0,0.00013698,2]
[404294391,1770041443330,-500.0,0.00013698,2]
[404294392,1770041443339,-500.0,0.00013698,2]